bitfinex/quotes_BTCUSD_20250526
["timestamp","ask_amount","ask_price","bid_price","bid_amount"]
[1748222006757,0.004,109170.0,109160.0,0.51138641]
[1748222007060,0.004,109170.0,109160.0,0.82550641]
[1748222008760,0.00013671,109180.0,109160.0,0.82450641]
[1748222008997,0.00013671,109180.0,109170.0,0.08954556]
[1748222010641,0.00013671,109180.0,109170.0,0.08954556]
[1748222010960,0.00213671,109180.0,109170.0,0.09054556]
[1748222012754,0.06713671,109180.0,109170.0,0.001]
[1748222016019,0.55864483,109180.0,109170.0,0.001]
[1748222017370,0.06713671,109180.0,109170.0,0.001]
[1748222023644,0.03523671,109180.0,109170.0,0.001]
[1748222023838,0.00213671,109180.0,109170.0,0.341]
[1748222024050,0.00213671,109180.0,109170.0,0.65670641]
[1748222025308,0.00013671,109180.0,109170.0,0.65570641]
[1748222025533,0.00013671,109180.0,109170.0,0.42954556]
[1748222025743,0.00113671,109180.0,109170.0,0.31604]
[1748222026000,0.03243671,109180.0,109170.0,0.31604]
[1748222026199,0.06483671,109180.0,109170.0,0.31604]
[1748222026794,0.06483671,109180.0,109170.0,0.002]
[1748222029194,0.03243671,109180.0,109170.0,0.002]
[1748222029370,0.00113671,109180.0,109170.0,0.00428977]
[1748222030295,0.00113671,109180.0,109170.0,0.07058977]
[1748222030468,0.00113671,109180.0,109170.0,0.002]
[1748222030673,0.00113671,109180.0,109170.0,0.06838961]
[1748222032458,0.00113671,109180.0,109170.0,0.03518961]
[1748222033092,0.00113671,109180.0,109170.0,0.06548961]
[1748222033309,0.03163671,109180.0,109170.0,0.002]
[1748222034322,0.00113671,109180.0,109170.0,0.002]
[1748222036094,0.00113671,109180.0,109160.0,0.58502085]
[1748222036289,0.00113671,109180.0,109160.0,0.67456641]
[1748222038115,0.00013671,109180.0,109160.0,0.67456641]
[1748222038515,0.00113671,109180.0,109160.0,0.67656641]
[1748222038747,0.03193671,109180.0,109160.0,0.67656641]
[1748222039239,0.03193671,109180.0,109160.0,0.66202556]
[1748222039436,0.06413671,109180.0,109160.0,0.74510556]
[1748222040018,0.03193671,109180.0,109170.0,0.00228968]
[1748222040291,0.00113671,109180.0,109170.0,0.00228968]
[1748222041202,0.00013671,109180.0,109170.0,0.00228968]
[1748222041502,0.00013671,109180.0,109170.0,0.00328968]
[1748222042976,0.00013671,109180.0,109170.0,0.001]
[1748222043178,0.03133671,109180.0,109170.0,0.001]
[1748222044884,0.06143671,109180.0,109170.0,0.001]
[1748222045671,0.55523439,109180.0,109170.0,0.001]
[1748222045875,0.55294483,109180.0,109170.0,0.001]
[1748222049417,0.06143671,109180.0,109170.0,0.001]
[1748222053678,0.03133671,109180.0,109170.0,0.001]
[1748222054191,0.00013671,109180.0,109170.0,0.001]
[1748222055379,0.00013671,109180.0,109170.0,0.00328966]
[1748222055728,0.00013671,109180.0,109170.0,0.40658966]
[1748222055900,0.00013671,109180.0,109170.0,0.55058]
[1748222061325,0.00013671,109180.0,109170.0,0.4043]
[1748222062814,0.00013671,109180.0,109170.0,0.341]
[1748222064431,0.00013671,109180.0,109170.0,0.49364556]
[1748222066380,0.00013671,109180.0,109170.0,0.46244556]
[1748222066587,0.00013671,109180.0,109170.0,0.43054556]
[1748222066769,0.06223671,109180.0,109170.0,0.341]
[1748222067776,0.00013671,109180.0,109170.0,0.43054556]
[1748222067986,0.00013671,109180.0,109170.0,0.49414556]
[1748222068238,0.00013671,109180.0,109170.0,0.80868641]
[1748222069558,0.00013671,109180.0,109170.0,0.95496641]
[1748222072848,0.00013671,109180.0,109170.0,0.92236641]
[1748222073416,0.00013671,109180.0,109170.0,0.94980541]
[1748222074019,0.00013671,109180.0,109170.0,0.91880541]
[1748222075373,0.03103671,109180.0,109170.0,0.59136641]
[1748222075914,0.03103671,109180.0,109170.0,0.57682556]
[1748222076113,0.06403671,109180.0,109170.0,0.57682556]
[1748222077443,0.03103671,109180.0,109170.0,0.57682556]
[1748222077706,0.00013671,109180.0,109170.0,0.65436641]
[1748222082786,0.00013671,109180.0,109170.0,0.95436641]
[1748222083904,0.00013671,109180.0,109170.0,0.98310486]
[1748222084910,0.00013671,109180.0,109170.0,0.98210486]
[1748222085258,0.00113671,109180.0,109170.0,0.98410486]
[1748222085502,0.00113671,109180.0,109170.0,1.01154186]
[1748222086370,0.00113671,109180.0,109170.0,1.07154186]
[1748222086570,0.00113671,109180.0,109170.0,1.09365088]
[1748222086911,0.00113671,109180.0,109170.0,1.07154186]
[1748222087296,0.00113671,109180.0,109170.0,1.04280341]
[1748222087503,0.00022678,109180.0,109170.0,1.06491243]
[1748222087757,0.00022678,109180.0,109170.0,1.04280341]
[1748222087992,0.10535852,109220.0,109210.0,0.35454085]
[1748222088161,0.10585666,109220.0,109210.0,0.75712641]
[1748222088876,0.13725666,109220.0,109210.0,0.75712641]
[1748222089365,0.13825666,109220.0,109210.0,0.75712641]
[1748222091035,0.07495666,109220.0,109210.0,0.16676]
[1748222091658,0.13735666,109220.0,109210.0,0.16676]
[1748222091864,0.13735666,109220.0,109200.0,0.36743]
[1748222092116,0.0636,109210.0,109200.0,0.78447641]
[1748222094455,0.0636,109210.0,109200.0,0.47151641]
[1748222094656,0.0636,109210.0,109200.0,0.78399641]
[1748222094841,0.0636,109210.0,109200.0,0.78499641]
[1748222095041,0.0323,109210.0,109200.0,0.78499641]
[1748222098305,0.063,109210.0,109200.0,0.78499641]
[1748222098747,0.063,109210.0,109200.0,0.75756641]
[1748222102799,0.06129814,109220.0,109200.0,0.75756641]
[1748222103227,0.0303,109210.0,109200.0,0.75756641]
[1748222103429,0.03079814,109220.0,109200.0,1.12056641]
[1748222103673,0.00049814,109220.0,109210.0,0.44637504]
[1748222103829,0.00049814,109220.0,109210.0,0.80708641]
[1748222104488,0.00049814,109220.0,109210.0,0.74408641]
[1748222105289,0.00049814,109220.0,109210.0,0.44408641]
[1748222105514,0.06119814,109220.0,109210.0,0.42954556]
[1748222105678,0.0637,109210.0,109200.0,0.19504082]
[1748222105877,0.0637,109210.0,109200.0,0.02884082]
[1748222106234,0.0637,109190.0,109180.0,0.36871382]
[1748222106350,0.0637,109190.0,109180.0,0.77082638]
[1748222107565,0.0637,109190.0,109180.0,0.74198556]
[1748222107765,0.0627,109190.0,109180.0,0.74198556]
[1748222108416,0.0637,109190.0,109180.0,0.74598556]
[1748222108659,0.0627,109190.0,109180.0,0.74198556]
[1748222108979,0.0627,109190.0,109180.0,0.74398556]
[1748222109183,0.0567,109190.0,109180.0,0.74398556]
[1748222109952,0.0253,109190.0,109180.0,0.74398556]
[1748222110695,0.0309,109210.0,109190.0,0.34]
[1748222110893,0.0309,109210.0,109190.0,0.42954556]
[1748222111122,0.0309,109210.0,109200.0,0.00228904]
[1748222111695,0.0309,109210.0,109200.0,0.002289]
[1748222112305,0.0615,109210.0,109200.0,0.002289]
[1748222112745,0.002,109210.0,109200.0,0.09183463]
[1748222112949,0.002,109210.0,109200.0,0.59261548]
[1748222113281,0.002,109210.0,109200.0,0.59032641]
[1748222114047,0.06339814,109220.0,109200.0,0.59032641]
[1748222114248,0.06339814,109220.0,109210.0,0.00228883]
[1748222115186,0.06339814,109220.0,109200.0,0.59032641]
[1748222115494,0.06439814,109220.0,109200.0,0.59032641]
[1748222117165,0.06339814,109220.0,109200.0,0.59032641]
[1748222117309,0.06339814,109220.0,109200.0,0.59132641]
[1748222119839,0.0631,109210.0,109200.0,0.44508641]
[1748222120050,0.0631,109210.0,109200.0,0.75752641]
[1748222121020,0.0631,109210.0,109200.0,0.75652641]
[1748222121478,0.03279814,109220.0,109200.0,0.75752641]
[1748222122657,0.03279814,109220.0,109200.0,0.75652641]
[1748222124371,0.06419814,109220.0,109200.0,0.75752641]
[1748222126523,0.0322,109210.0,109200.0,0.61128641]
[1748222126719,0.0322,109210.0,109200.0,0.75752641]
[1748222127628,0.0322,109210.0,109200.0,0.75652641]
[1748222127996,0.0322,109210.0,109200.0,0.75752641]
[1748222128212,0.06539814,109220.0,109200.0,0.78882641]
[1748222128477,0.05939814,109220.0,109200.0,0.78882641]
[1748222128860,0.05939814,109220.0,109200.0,0.75752641]
[1748222129482,0.05939814,109220.0,109200.0,0.65232474]
[1748222129984,0.05939814,109220.0,109200.0,0.65132474]
[1748222130375,0.05939814,109220.0,109200.0,0.65232474]
[1748222136186,0.05939814,109220.0,109210.0,0.00228885]
[1748222137472,0.05939814,109220.0,109200.0,0.33888474]
[1748222137625,0.06039814,109220.0,109210.0,0.14624]
[1748222139401,0.06039814,109220.0,109200.0,0.50456474]
[1748222139600,0.0305,109210.0,109200.0,0.65080474]
[1748222140362,0.0245,109210.0,109200.0,0.65180474]
[1748222140574,0.0245,109210.0,109200.0,0.65080474]
[1748222141012,0.02679814,109220.0,109200.0,0.65180474]
[1748222141682,0.02679814,109220.0,109200.0,0.71390474]
[1748222141890,0.0332,109250.0,109220.0,0.7048]
[1748222142058,0.0332,109250.0,109240.0,0.34]
[1748222142323,0.03334944,109250.0,109240.0,0.34]
[1748222143641,0.06424944,109250.0,109240.0,0.34]
[1748222145023,0.03334944,109250.0,109240.0,0.34]
[1748222145349,0.06434944,109250.0,109240.0,0.34]
[1748222147492,0.06434944,109250.0,109240.0,0.84]
[1748222153216,0.55585756,109250.0,109240.0,0.5]
[1748222153496,0.64540312,109250.0,109240.0,0.5]
[1748222153911,0.153895,109250.0,109240.0,0.5]
[1748222154366,0.06434944,109250.0,109240.0,0.5]
[1748222154773,0.06634944,109250.0,109240.0,0.5]
[1748222155324,0.00414944,109250.0,109240.0,0.5]
[1748222159484,0.58749268,109250.0,109240.0,0.5]
[1748222159829,0.82950875,109250.0,109240.0,0.5]
[1748222160041,0.74970883,109250.0,109240.0,0.5]
[1748222160234,0.61266198,109250.0,109240.0,0.5]
[1748222160465,0.93277561,109250.0,109240.0,0.5]
[1748222160672,1.27277561,109250.0,109240.0,0.5]
[1748222161318,1.26362263,109250.0,109240.0,0.5]
[1748222161532,1.29393756,109250.0,109240.0,0.5]
[1748222161721,1.26901033,109250.0,109240.0,0.5]
[1748222162485,1.26701033,109250.0,109240.0,0.5]
[1748222162885,1.27301033,109250.0,109240.0,0.501]
[1748222163087,1.27301033,109250.0,109240.0,0.5]
[1748222163286,1.28216348,109250.0,109240.0,0.5]
[1748222163610,1.28816348,109250.0,109240.0,0.501]
[1748222164495,1.11425001,109250.0,109240.0,0.501]
[1748222164810,1.33096378,109250.0,109240.0,0.501]
[1748222165728,0.81496156,109250.0,109240.0,0.501]
[1748222165935,1.30646968,109250.0,109240.0,0.501]
[1748222166140,1.1142495,109250.0,109240.0,0.501]
[1748222166320,1.12340248,109250.0,109240.0,0.501]
[1748222166529,1.16275563,109250.0,109240.0,0.501]
[1748222166731,1.1756495,109250.0,109240.0,0.501]
[1748222166936,0.165095,109250.0,109240.0,0.501]
[1748222167137,0.165095,109250.0,109240.0,0.841]
[1748222167344,0.01414944,109250.0,109240.0,0.841]
[1748222167628,0.01414944,109250.0,109240.0,0.8739]
[1748222168342,0.01414944,109250.0,109240.0,0.841]
[1748222169050,0.01414944,109250.0,109240.0,0.9063]
[1748222169483,0.01414944,109250.0,109240.0,0.841]
[1748222169890,0.00214944,109250.0,109240.0,0.84]
[1748222170095,0.00614944,109250.0,109240.0,0.841]
[1748222174250,0.06974944,109250.0,109240.0,0.841]
[1748222174813,0.159295,109250.0,109240.0,0.841]
[1748222175016,0.305495,109250.0,109240.0,0.841]
[1748222175700,0.305495,109250.0,109240.0,0.501]
[1748222176145,0.77453795,109250.0,109240.0,0.501]
[1748222176350,0.79284366,109250.0,109240.0,0.501]
[1748222176524,0.80199681,109250.0,109240.0,0.501]
[1748222176947,0.80199672,109250.0,109240.0,0.501]
[1748222177325,0.78369068,109250.0,109240.0,0.501]
[1748222177521,0.80199655,109250.0,109240.0,0.27040875]
[1748222177763,0.8111497,109250.0,109240.0,0.27040875]
[1748222178594,0.81115029,109250.0,109240.0,0.27040875]
[1748222180009,0.99421665,109250.0,109240.0,0.27040875]
[1748222180181,0.98506392,109250.0,109240.0,0.27040875]
[1748222180398,0.99421639,109250.0,109240.0,0.27040875]
[1748222180603,0.98506383,109250.0,109240.0,0.27040875]
[1748222180769,0.80199747,109250.0,109240.0,0.27040875]
[1748222180970,0.98506383,109250.0,109240.0,0.27040875]
[1748222181182,0.99421698,109250.0,109240.0,0.27040875]
[1748222181741,0.64664383,109250.0,109240.0,0.27040875]
[1748222181947,0.78373068,109250.0,109240.0,0.27040875]
[1748222182143,0.79288357,109250.0,109240.0,0.27040875]
[1748222182373,0.32384037,109250.0,109240.0,0.27040875]
[1748222183128,0.159295,109250.0,109240.0,0.27040875]
[1748222183332,0.095695,109250.0,109240.0,0.27040875]
[1748222183529,0.00614944,109250.0,109240.0,0.27040875]
[1748222184036,0.008439,109250.0,109240.0,0.27040875]
[1748222186013,0.008439,109250.0,109240.0,0.27040875]
[1748222187420,0.09798456,109250.0,109240.0,0.27040875]
[1748222187590,0.16088456,109250.0,109240.0,0.27040875]
[1748222189487,0.30712456,109250.0,109240.0,0.27040875]
[1748222189663,0.304835,109250.0,109240.0,0.27040875]
[1748222189982,0.158595,109250.0,109240.0,0.27040875]
[1748222190187,0.30712456,109250.0,109240.0,0.27040875]
[1748222190383,0.304835,109250.0,109240.0,0.27040875]
[1748222194434,0.33229368,109250.0,109240.0,0.27040875]
[1748222194615,0.98440366,109250.0,109240.0,0.27040875]
[1748222194772,0.78303076,109250.0,109240.0,0.27040875]
[1748222194948,0.98440316,109250.0,109240.0,0.27040875]
[1748222195153,0.99355639,109250.0,109240.0,0.27040875]
[1748222195377,0.8013368,109250.0,109240.0,0.27040875]
[1748222195574,0.78303076,109250.0,109240.0,0.27040875]
[1748222195996,0.77387795,109250.0,109240.0,0.27040875]
[1748222196285,0.76472531,109250.0,109240.0,0.27040875]
[1748222197286,0.77387787,109250.0,109240.0,0.27040875]
[1748222197482,0.78303068,109250.0,109240.0,0.27040875]
[1748222197688,0.304835,109250.0,109240.0,0.27040875]
[1748222199953,0.79561295,109250.0,109240.0,0.27040875]
[1748222200831,0.82307154,109250.0,109240.0,0.27040875]
[1748222201249,0.83222461,109250.0,109240.0,0.27040875]
[1748222201461,0.92174612,109250.0,109240.0,0.27040875]
[1748222201713,0.91259297,109250.0,109240.0,0.27040875]
[1748222202006,0.80476551,109250.0,109240.0,0.27040875]
[1748222202216,0.81391824,109250.0,109240.0,0.27040875]
[1748222202639,0.32314029,109250.0,109240.0,0.27040875]
[1748222202842,0.82307122,109250.0,109240.0,0.27040875]
[1748222203167,0.81391824,109250.0,109240.0,0.27040875]
[1748222203372,0.81907113,109250.0,109240.0,0.26940875]
[1748222203589,0.80991824,109250.0,109240.0,0.27040875]
[1748222203791,0.82407113,109250.0,109240.0,0.27040875]
[1748222204506,0.81491815,109250.0,109240.0,0.27040875]
[1748222204710,0.80576551,109250.0,109240.0,0.27040875]
[1748222204893,0.80576551,109250.0,109240.0,0.26940875]
[1748222205496,0.127395,109250.0,109240.0,0.26940875]
[1748222205707,0.00714944,109250.0,109240.0,0.33050875]
[1748222206036,0.00714944,109250.0,109240.0,0.26940875]
[1748222206348,0.00214944,109250.0,109240.0,0.26840875]
[1748222206550,0.14838944,109250.0,109240.0,0.33020875]
[1748222206861,0.00514944,109250.0,109240.0,0.33120875]
[1748222207714,0.00514944,109250.0,109240.0,0.67120875]
[1748222208498,0.49592739,109250.0,109240.0,0.26940875]
[1748222208703,0.79501295,109250.0,109240.0,0.26940875]
[1748222208933,0.240935,109250.0,109240.0,0.26940875]
[1748222209131,0.094695,109250.0,109240.0,0.26940875]
[1748222209297,0.24322456,109250.0,109240.0,0.26940875]
[1748222209649,0.240935,109250.0,109240.0,0.26940875]
[1748222209818,0.303535,109250.0,109240.0,0.26940875]
[1748222210997,0.79431295,109250.0,109240.0,0.26940875]
[1748222211196,0.80346551,109250.0,109240.0,0.26940875]
[1748222211404,1.01399055,109250.0,109240.0,0.26940875]
[1748222211617,0.99568535,109250.0,109240.0,0.26940875]
[1748222211987,0.9651133,109250.0,109240.0,0.26940875]
[1748222212190,0.94680726,109250.0,109240.0,0.26940875]
[1748222213172,0.96134811,109250.0,109240.0,0.26940875]
[1748222213367,1.05086962,109250.0,109240.0,0.26940875]
[1748222214208,1.85107552,109250.0,109240.0,0.25436824]
[1748222214444,1.85107552,109250.0,109240.0,0.20868876]
[1748222214629,1.85107552,109250.0,109240.0,0.16300928]
[1748222214911,1.85983026,109250.0,109240.0,0.09135896]
[1748222215137,1.85983026,109250.0,109240.0,0.04566448]
[1748222215311,0.08121048,109220.0,109200.0,0.07345852]
[1748222215522,0.23807512,109210.0,109200.0,0.07345852]
[1748222215735,0.14624,109210.0,109200.0,0.07345852]
[1748222215936,0.14852956,109210.0,109200.0,0.07345852]
[1748222216100,0.23807512,109210.0,109200.0,0.07345852]
[1748222216293,0.23578556,109210.0,109200.0,0.07345852]
[1748222216499,0.29918556,109210.0,109180.0,0.13755852]
[1748222216734,0.00228956,109200.0,109180.0,0.47805666]
[1748222216948,0.00028956,109200.0,109180.0,0.47805666]
[1748222217471,0.08483512,109200.0,109180.0,0.41395666]
[1748222217622,0.08483512,109200.0,109180.0,0.34049814]
[1748222217828,0.08583512,109200.0,109180.0,0.34049814]
[1748222218129,0.09399187,109200.0,109180.0,0.34049814]
[1748222218330,0.09338759,109200.0,109180.0,0.34049814]
[1748222218759,0.10254442,109200.0,109180.0,0.34049814]
[1748222218969,0.13384442,109200.0,109180.0,0.34049814]
[1748222219196,0.16444451,109200.0,109180.0,0.00049814]
[1748222219640,0.15528759,109200.0,109180.0,0.00049814]
[1748222219834,0.45543143,109200.0,109180.0,0.00049814]
[1748222220091,0.62565041,109200.0,109180.0,0.00049814]
[1748222220520,0.28669728,109200.0,109180.0,0.00049814]
[1748222220661,0.21034,109190.0,109180.0,0.00049814]
[1748222221000,0.30904323,109190.0,109180.0,0.00049814]
[1748222221410,0.31820099,109190.0,109180.0,0.00049814]
[1748222221841,0.36889878,109190.0,109180.0,0.00049814]
[1748222222041,0.51968421,109190.0,109180.0,0.00049814]
[1748222222665,0.33651726,109190.0,109180.0,0.00049814]
[1748222223028,0.51590963,109190.0,109180.0,0.00049814]
[1748222223258,0.86590963,109190.0,109180.0,0.00049814]
[1748222223462,0.5242059,109160.0,109130.0,6e-05]
[1748222223664,0.08954556,109150.0,109140.0,0.07345852]
[1748222223867,0.08954556,109160.0,109140.0,0.13655852]
[1748222224404,0.08954556,109160.0,109130.0,0.06259671]
[1748222224963,0.09054556,109150.0,109130.0,0.00019671]
[1748222225419,0.09054556,109150.0,109130.0,0.34019671]
[1748222226249,0.08954556,109150.0,109130.0,0.34019671]
[1748222227180,0.09054556,109150.0,109130.0,0.34019671]
[1748222229747,0.09054556,109150.0,109130.0,0.08799278]
[1748222229955,0.43054556,109150.0,109120.0,0.0658]
[1748222230158,0.43054556,109150.0,109120.0,0.06594928]
[1748222230369,0.52545193,109150.0,109120.0,0.06594928]
[1748222230572,0.50712962,109150.0,109120.0,0.00014928]
[1748222230793,0.50712962,109150.0,109120.0,0.03094928]
[1748222230985,0.50612962,109150.0,109120.0,0.06374928]
[1748222231316,0.47482962,109150.0,109120.0,0.06374928]
[1748222232820,0.62114962,109150.0,109120.0,0.06374928]
[1748222234310,0.47482962,109150.0,109120.0,0.06374928]
[1748222234645,0.65124962,109150.0,109120.0,0.06374928]
[1748222234920,0.50492962,109150.0,109120.0,0.06374928]
[1748222235119,0.58874962,109150.0,109120.0,0.0660401]
[1748222235479,0.61884962,109150.0,109120.0,0.0660401]
[1748222235694,0.65074962,109150.0,109120.0,0.0660401]
[1748222235897,0.65074962,109150.0,109120.0,0.0690401]
[1748222236105,0.50442962,109150.0,109120.0,0.0690401]
[1748222236323,0.65074962,109150.0,109120.0,0.0690401]
[1748222238495,0.50442962,109150.0,109120.0,0.0690401]
[1748222238701,0.65074962,109150.0,109120.0,0.0690401]
[1748222239305,0.50442962,109150.0,109120.0,0.0690401]
[1748222239457,0.65074962,109150.0,109120.0,0.0690401]
[1748222239660,0.65078962,109150.0,109120.0,0.0690401]
[1748222241854,0.0641,109140.0,109120.0,0.00314928]
[1748222242405,0.61352238,109140.0,109120.0,0.00314928]
[1748222242627,0.0317,109130.0,109120.0,0.00314928]
[1748222242839,0.0629,109130.0,109120.0,0.00014928]
[1748222243248,0.0629,109130.0,109120.0,0.00214928]
[1748222244049,0.0639,109130.0,109120.0,0.00214928]
[1748222244426,0.0639,109130.0,109120.0,0.00014928]
[1748222244833,0.0639,109130.0,109120.0,0.00214928]
[1748222247905,0.15344556,109130.0,109120.0,0.00214928]
[1748222249236,0.15244556,109130.0,109120.0,0.00214928]
[1748222249441,0.15244556,109130.0,109120.0,0.00014928]
[1748222249641,0.15344556,109130.0,109120.0,0.00014928]
[1748222250057,0.001,109130.0,109120.0,0.00014928]
[1748222250273,0.001,109130.0,109120.0,0.03114928]
[1748222250482,0.001,109130.0,109120.0,0.06664015]
[1748222251321,0.001,109130.0,109120.0,0.06764015]
[1748222254212,0.001,109130.0,109120.0,0.00114928]
[1748222256239,0.001,109130.0,109120.0,0.00344006]
[1748222256415,0.001,109130.0,109120.0,0.03414928]
[1748222257006,0.001,109130.0,109120.0,0.03644006]
[1748222259302,0.001,109130.0,109120.0,0.00114928]
[1748222259714,0.0635,109130.0,109120.0,0.00114928]
[1748222260117,0.0329,109130.0,109120.0,0.00114928]
[1748222261453,0.001,109130.0,109120.0,0.00114928]
[1748222261824,0.001,109130.0,109120.0,0.03244928]
[1748222262600,0.001,109130.0,109120.0,0.00114928]
[1748222264207,0.0629,109130.0,109120.0,0.00114928]
[1748222264526,0.001,109130.0,109120.0,0.00114928]
[1748222271146,0.15274556,109130.0,109120.0,0.00114928]
[1748222272550,0.001,109130.0,109120.0,0.00114928]
[1748222277303,0.0622,109130.0,109120.0,0.00114928]
[1748222280507,0.001,109130.0,109120.0,0.00114928]
[1748222282823,0.001,109130.0,109120.0,0.06434928]
[1748222283255,0.001,109130.0,109120.0,0.03164928]
[1748222283379,0.001,109130.0,109120.0,0.00114928]
[1748222284581,0.001,109130.0,109120.0,0.21190928]
[1748222286695,0.001,109130.0,109120.0,0.55190928]
[1748222287440,0.0338,109130.0,109120.0,0.34114928]
[1748222287650,0.001,109130.0,109120.0,0.34114928]
[1748222288824,0.0626,109130.0,109120.0,0.34114928]
[1748222292045,0.0626,109130.0,109110.0,0.3106]
[1748222292190,0.0627493,109130.0,109110.0,0.40014556]
[1748222292962,0.033,109120.0,109100.0,0.45508167]
[1748222293176,0.0646493,109130.0,109110.0,0.3106]
[1748222293405,0.0656493,109130.0,109110.0,0.3126]
[1748222296071,0.0656493,109130.0,109110.0,0.12214953]
[1748222296394,0.0656493,109130.0,109110.0,0.12444043]
[1748222297012,0.0656493,109130.0,109110.0,0.12214953]
[1748222297929,0.0656493,109130.0,109110.0,0.12444043]
[1748222300293,0.0011493,109130.0,109110.0,0.27728599]
[1748222300442,0.0011493,109130.0,109110.0,0.27499509]
[1748222300798,0.0011493,109130.0,109120.0,0.00229078]
[1748222302275,0.0001493,109130.0,109120.0,0.00229078]
[1748222302658,0.0011493,109130.0,109120.0,0.00229078]
[1748222303152,0.0011493,109130.0,109120.0,0.03269078]
[1748222303383,0.0011493,109130.0,109120.0,0.03369078]
[1748222303582,0.0011493,109130.0,109120.0,0.00329078]
[1748222306274,0.0011493,109130.0,109120.0,0.06719078]
[1748222306480,0.0011493,109130.0,109120.0,0.80898641]
[1748222308148,0.0011493,109130.0,109120.0,0.81760407]
[1748222308269,0.0011493,109130.0,109120.0,0.80898641]
[1748222308477,0.0011493,109130.0,109120.0,0.83782723]
[1748222309260,0.0011493,109130.0,109120.0,0.83682723]
[1748222309461,0.0001493,109130.0,109120.0,0.83682723]
[1748222309615,0.0584493,109160.0,109130.0,0.41894085]
[1748222309797,0.0086063,109160.0,109140.0,0.14636]
[1748222310001,0.0313,109150.0,109140.0,0.14636]
[1748222310603,0.0313,109150.0,109130.0,0.12094556]
[1748222310800,0.0324,109160.0,109130.0,0.3104]
[1748222311011,0.0324,109140.0,109120.0,0.02884082]
[1748222311214,0.0324,109140.0,109120.0,0.42878638]
[1748222311637,0.0324,109140.0,109120.0,0.40194556]
[1748222311880,0.0324,109140.0,109130.0,0.001]
[1748222312236,0.0324,109140.0,109120.0,0.43204556]
[1748222312433,0.0324,109140.0,109120.0,0.43304556]
[1748222312643,0.066,109140.0,109120.0,0.43404556]
[1748222312838,0.066,109140.0,109120.0,0.43304556]
[1748222313084,0.066,109140.0,109120.0,0.43204556]
[1748222313284,0.067,109140.0,109130.0,0.001]
[1748222313494,0.066,109140.0,109120.0,0.43204556]
[1748222313696,0.067,109140.0,109120.0,0.43304556]
[1748222314458,0.067,109140.0,109130.0,0.34]
[1748222315615,0.065,109140.0,109130.0,0.34]
[1748222315760,0.066,109140.0,109130.0,0.34]
[1748222316552,0.066,109140.0,109130.0,0.30559002]
[1748222316855,0.066,109140.0,109130.0,0.14632]
[1748222316856,0.001,109140.0,109130.0,0.14632]
[1748222317065,0.001,109140.0,109130.0,0.14861057]
[1748222317204,0.001,109140.0,109130.0,0.21201057]
[1748222317388,0.001,109140.0,109130.0,0.20972]
[1748222318035,0.0256,109150.0,109130.0,0.20972]
[1748222318221,0.04001997,109160.0,109130.0,0.20972]
[1748222319425,0.04001997,109160.0,109140.0,0.00229044]
[1748222319955,0.04101997,109160.0,109140.0,0.00229044]
[1748222320359,0.04101997,109160.0,109130.0,0.59926556]
[1748222321156,0.07121997,109160.0,109130.0,0.59926556]
[1748222321520,0.07321997,109160.0,109140.0,0.001]
[1748222321896,0.07321997,109160.0,109130.0,0.59926556]
[1748222322114,0.07421997,109160.0,109130.0,0.60026556]
[1748222322322,0.07221997,109160.0,109130.0,0.59926556]
[1748222322448,0.07121997,109160.0,109130.0,0.59926556]
[1748222322655,0.07321997,109160.0,109140.0,0.00329031]
[1748222322848,0.07321997,109160.0,109140.0,0.00229031]
[1748222323500,0.07321997,109160.0,109130.0,0.59926556]
[1748222323745,0.002,109160.0,109140.0,0.50033587]
[1748222323963,0.003,109160.0,109150.0,0.68680085]
[1748222324123,0.00014947,109170.0,109160.0,0.31454085]
[1748222324368,0.00014947,109170.0,109160.0,0.46598641]
[1748222324588,0.00014947,109170.0,109160.0,0.80598641]
[1748222325167,0.07277935,109210.0,109180.0,0.3]
[1748222325366,0.033,109200.0,109180.0,0.38954556]
[1748222325567,0.033,109190.0,109170.0,0.34]
[1748222325906,0.033,109190.0,109160.0,0.343]
[1748222325907,0.001,109170.0,109160.0,0.343]
[1748222326116,0.001,109170.0,109160.0,0.002]
[1748222326117,0.0625,109170.0,109160.0,0.002]
[1748222326489,0.0615,109170.0,109160.0,0.002]
[1748222326872,0.0615,109170.0,109150.0,0.63952]
[1748222327071,0.0615,109170.0,109150.0,0.72906556]
[1748222327238,0.0615,109170.0,109150.0,0.72921503]
[1748222328049,0.0625,109170.0,109150.0,0.72921503]
[1748222328456,0.0615,109170.0,109150.0,0.72921503]
[1748222328658,0.0625,109170.0,109150.0,0.72921503]
[1748222330484,0.0625,109170.0,109150.0,0.73021503]
[1748222330729,0.0625,109170.0,109150.0,0.64066947]
[1748222331318,0.001,109170.0,109150.0,0.73021503]
[1748222331548,0.001,109170.0,109160.0,0.00229001]
[1748222332356,0.0316,109180.0,109160.0,0.00229001]
[1748222332559,0.063,109180.0,109160.0,0.00229001]
[1748222332964,0.003,109170.0,109160.0,0.00229001]
[1748222333852,0.003,109170.0,109150.0,0.72921503]
[1748222334651,0.063,109180.0,109150.0,0.72921503]
[1748222335153,0.063,109180.0,109150.0,0.40001503]
[1748222335358,0.066,109180.0,109150.0,0.40101503]
[1748222335828,0.063,109180.0,109150.0,0.40101503]
[1748222336168,0.064,109180.0,109150.0,0.40101503]
[1748222336394,0.064,109180.0,109150.0,0.43281503]
[1748222336614,0.064,109180.0,109150.0,0.43181503]
[1748222336834,0.064,109180.0,109150.0,0.43281503]
[1748222337075,0.064,109180.0,109160.0,0.00228997]
[1748222337497,0.064,109180.0,109150.0,0.40101503]
[1748222337941,0.064,109180.0,109150.0,0.40001503]
[1748222339572,0.064,109180.0,109150.0,0.25369503]
[1748222339784,0.063,109170.0,109160.0,0.14628]
[1748222340770,0.0305,109160.0,109150.0,0.00014947]
[1748222340973,0.063,109160.0,109150.0,0.31030947]
[1748222342091,0.057,109160.0,109150.0,0.31030947]
[1748222342289,0.059,109160.0,109150.0,0.31030947]
[1748222342827,0.059,109160.0,109150.0,0.31130947]
[1748222343709,0.059,109160.0,109150.0,0.00114947]
[1748222346809,0.002,109160.0,109150.0,0.00114947]
[1748222349280,0.0606,109170.0,109150.0,0.00114947]
[1748222350712,0.0606,109170.0,109150.0,0.00014947]
[1748222351699,0.0606,109170.0,109150.0,0.04014947]
[1748222352035,0.0606,109170.0,109150.0,0.04114947]
[1748222353756,0.064,109160.0,109150.0,0.18746947]